bitfinex-derivatives/quotes_SOLF0:USTF0_20241027
["timestamp","ask_amount","ask_price","bid_price","bid_amount"]
[1730049028408,2.8312,176.79,176.76,2.8315]
[1730049028805,2.831,176.8,176.77,2.8314]
[1730049029504,4.16,176.83,176.77,6.9614168]
[1730049029505,6.9614168,176.82,176.77,6.9614168]
[1730049029705,55.02,176.87,176.73,1.162]
[1730049029706,55.02,176.87,176.81,6.9614168]
[1730049029913,4.16,176.86,176.83,6.9614168]
[1730049030314,2.8304,176.84,176.82,6.9614168]
[1730049031513,2.8304,176.84,176.76,6.26720418]
[1730049031514,2.8304,176.84,176.8,9.7923168]
[1730049031809,6.9614168,176.84,176.73,1.162]
[1730049032017,55.02,176.87,176.74,9.0993174]
[1730049032018,6.9614168,176.79,176.74,9.0993174]
[1730049032310,4.16,176.78,176.74,2.8319]
[1730049032612,4.16,176.78,176.72,1.2146]
[1730049032613,4.16,176.82,176.79,2.831]
[1730049032818,4.16,176.82,176.8,6.9614168]
[1730049033108,6.9907,176.82,176.8,6.9614168]
[1730049034414,4.16,176.82,176.8,6.9614168]
[1730049034610,6.9614168,176.81,176.76,4.0377]
[1730049034806,6.9614168,176.81,176.76,9.7929168]
[1730049036417,2.8312,176.79,176.76,9.7929168]
[1730049036615,6.9614168,176.81,176.72,6.6387]
[1730049036919,2.8312,176.79,176.75,9.7932168]
[1730049037214,6.9614168,176.8,176.75,9.7932168]
[1730049037410,4.16,176.82,176.76,6.9614168]
[1730049037411,2.8313,176.79,176.76,6.9614168]
[1730049038315,2.831,176.8,176.77,6.9614168]
[1730049038511,61.9814168,176.87,176.79,6.9614168]
[1730049038711,61.9814168,176.87,176.72,2.4787]
[1730049038712,4.16,176.86,176.82,6.9614168]
[1730049039024,2.8305,176.84,176.83,6.9614168]
[1730049039811,2.8305,176.84,176.8,2.8309]
[1730049039812,2.8305,176.84,176.81,6.9614168]
[1730049041003,6.9905,176.84,176.81,9.7922168]
[1730049041710,6.9905,176.84,176.81,6.9614168]
[1730049044021,4.16,176.84,176.81,6.9614168]
[1730049044210,4.16,176.84,176.78,2.8312]
[1730049044409,6.9614168,176.83,176.77,8.1283168]
[1730049044609,6.9614168,176.83,176.77,6.9614168]
[1730049046110,6.9614168,176.83,176.78,2.8312]
[1730049046111,2.8309,176.81,176.78,2.8312]
[1730049054919,4.16,176.8,176.74,4.84561578]
[1730049055116,4.16,176.8,176.75,2.8317]
[1730049055312,4.16,176.8,176.76,6.9614168]
[1730049055513,4.16,176.8,176.72,2.4787]
[1730049055819,4.16,176.8,176.74,6.9614168]
[1730049055820,2.8317,176.76,176.74,6.9614168]
[1730049056011,6.9614168,176.79,176.75,6.9614168]
[1730049056218,4.16,176.8,176.76,6.9614168]
[1730049056741,4.16,176.8,176.78,6.9614168]
[1730049057916,2.8311,176.79,176.75,2.8318]
[1730049058117,2.8311,176.79,176.76,6.9614168]
[1730049059021,2.8311,176.79,176.76,9.7930168]
[1730049063020,4.16,176.8,176.76,6.9614168]
[1730049063327,4.16,176.8,176.79,6.9614168]
[1730049063720,2.8309,176.81,176.79,6.9614168]
[1730049064825,6.5757,176.9,176.8,6.9614168]
[1730049065019,6.5757,176.9,176.74,1.1756]
[1730049065020,4.16,176.86,176.82,6.9614168]
[1730049065215,11.1214168,176.86,176.81,6.9614168]
[1730049065922,2.8306,176.83,176.81,6.9614168]
[1730049066226,11.1214168,176.86,176.74,1.1756]
[1730049066227,6.9614168,176.84,176.74,1.1756]
[1730049066427,2.8309,176.81,176.77,6.9614168]
[1730049067151,2.8309,176.81,176.78,2.8313]
[1730049067833,2.8309,176.81,176.78,9.7927168]
[1730049068021,2.8309,176.81,176.8,6.9614168]
[1730049068218,4.16,176.82,176.8,6.9614168]
[1730049068420,4.16,176.82,176.81,6.9614168]
[1730049070126,4.16,176.82,176.74,1.1756]
[1730049070325,4.16,176.82,176.75,6.25988641]
[1730049070537,11.1214168,176.82,176.76,6.25988641]
[1730049070722,2.8311,176.8,176.77,11.20893702]
[1730049071016,2.8311,176.8,176.77,9.7928168]
[1730049071420,2.8311,176.8,176.78,2.8313]
[1730049071719,6.9614168,176.81,176.74,1.1756]
[1730049071930,6.9614168,176.79,176.74,8.1370168]
[1730049072230,4.16,176.78,176.74,8.1370168]
[1730049072728,6.9914,176.78,176.75,2.8317]
[1730049073629,6.9914,176.78,176.75,9.7931168]
[1730049076435,6.9914,176.78,176.76,6.9614168]
[1730049078145,6.9914,176.78,176.76,9.7930168]
[1730049078841,4.16,176.78,176.76,6.9614168]
[1730049079042,4.16,176.8,176.77,6.9614168]
[1730049079340,4.16,176.81,176.79,6.9614168]
[1730049079527,4.16,176.84,176.79,6.9614168]
[1730049079728,4.16,176.84,176.82,6.9614168]
[1730049080346,2.8306,176.83,176.82,6.9614168]
[1730049080548,4.16,176.84,176.82,6.9614168]
[1730049081040,6.9904,176.84,176.82,6.9614168]
[1730049081440,2.8304,176.84,176.82,6.9614168]
[1730049081644,6.9904,176.84,176.82,6.9614168]
[1730049084245,2.8304,176.84,176.82,6.9614168]
[1730049084452,6.9904,176.84,176.82,6.9614168]
[1730049085049,4.16,176.84,176.78,2.4605]
[1730049085248,2.8307,176.82,176.79,9.7924168]
[1730049087148,6.9614168,176.83,176.74,1.1756]
[1730049087341,6.9614168,176.83,176.77,6.9614168]
[1730049087535,2.8313,176.78,176.77,6.9614168]
[1730049087742,2.8313,176.78,176.76,6.9614168]
[1730049092058,2.8313,176.78,176.77,6.9614168]
[1730049095755,4.16,176.8,176.72,1.1537]
[1730049095962,2.8317,176.76,176.74,6.9614168]
[1730049097257,2.8315,176.77,176.75,6.9614168]
[1730049098357,2.8315,176.77,176.74,2.8319]
[1730049098558,2.8315,176.77,176.73,2.832]
[1730049098752,2.8315,176.77,176.75,6.9614168]
[1730049103760,2.8315,176.77,176.74,2.8319]
[1730049103961,2.8315,176.77,176.75,6.9614168]
[1730049104771,2.8315,176.77,176.74,2.8319]
[1730049104966,2.8315,176.77,176.76,6.9614168]
[1730049105170,4.16,176.8,176.67,5.6661]
[1730049105469,6.9614168,176.78,176.73,6.9614168]
[1730049107069,2.8319,176.75,176.73,6.9614168]
[1730049107271,4.16,176.76,176.63,5.6674]
[1730049107476,4.16,176.76,176.72,6.9614168]
[1730049107670,2.8318,176.75,176.72,6.9614168]
[1730049107976,2.8318,176.75,176.74,6.9614168]
[1730049108175,4.16,176.76,176.74,6.9614168]
[1730049108579,1.1986,176.82,176.74,6.9614168]
[1730049108881,2.831,176.8,176.79,6.9614168]
[1730049109175,4.16,176.81,176.79,6.9614168]
[1730049109376,4.16,176.81,176.8,6.9614168]
[1730049109772,6.991,176.81,176.77,2.8314]
[1730049110173,6.991,176.81,176.8,6.9614168]
[1730049115581,4.16,176.81,176.73,3.648]
[1730049115784,4.16,176.81,176.76,2.8316]
[1730049115785,2.8312,176.79,176.76,2.8316]
[1730049115979,2.8312,176.79,176.77,6.9614168]
[1730049117986,2.8312,176.79,176.73,3.648]
[1730049118292,4.16,176.81,176.73,3.648]
[1730049118293,2.8317,176.76,176.74,13.21465033]
[1730049118484,2.8317,176.76,176.75,1.41623412]
[1730049118885,2.8317,176.76,176.74,6.9614168]
[1730049119887,2.8317,176.76,176.74,9.7933168]
[1730049120087,6.9916,176.77,176.75,6.9614168]
[1730049120296,4.16,176.77,176.75,9.7931168]
[1730049122084,6.9915,176.77,176.75,9.7931168]
[1730049122790,4.16,176.77,176.75,6.9614168]
[1730049122992,4.16,176.77,176.76,2.8316]
[1730049123695,4.16,176.8,176.76,2.8316]
[1730049123998,4.16,176.8,176.77,6.9614168]
[1730049124495,2.8313,176.78,176.77,6.9614168]
[1730049125192,2.8313,176.79,176.77,6.9614168]
[1730049125511,4.16,176.8,176.77,6.9614168]
[1730049125686,2.8312,176.79,176.77,6.9614168]
[1730049127196,6.991,176.8,176.77,9.7928168]
[1730049127400,6.991,176.8,176.79,6.9614168]
[1730049128592,6.991,176.81,176.79,6.9614168]
[1730049128800,6.991,176.81,176.8,6.9614168]
[1730049129004,2.831,176.81,176.8,6.9614168]
[1730049130690,2.8308,176.81,176.8,6.9614168]
[1730049136608,2.8308,176.81,176.79,6.9614168]
[1730049137006,2.8308,176.81,176.8,6.9614168]
[1730049138111,4.16,176.82,176.8,6.9614168]
[1730049138406,6.9907,176.82,176.8,6.9614168]
[1730049139706,4.16,176.82,176.8,6.9614168]
[1730049139905,4.16,176.82,176.81,6.9614168]
[1730049140792,2.8306,176.83,176.81,6.9614168]
[1730049140793,6.9706,176.83,176.81,6.9614168]
[1730049141906,6.9706,176.83,176.69,1.2369]
[1730049141907,2.8299,176.87,176.82,6.9614168]
[1730049142100,4.14,176.86,176.85,6.9614168]
[1730049142405,4.14,176.86,176.85,9.7916168]
[1730049142605,4.14,176.86,176.85,6.9614168]
[1730049143601,4.14,176.87,176.85,6.9614168]
[1730049146506,2.8303,176.85,176.81,2.8307]
[1730049146808,6.9614168,176.85,176.79,6.9614168]
[1730049147205,2.8307,176.82,176.79,2.831]
[1730049147411,2.8307,176.82,176.79,9.7924168]
[1730049149420,4.14,176.83,176.79,6.9614168]
[1730049149619,4.14,176.83,176.8,6.9614168]
[1730049150620,2.8307,176.82,176.79,9.7925168]
[1730049156321,2.8307,176.82,176.8,2.8309]
[1730049156915,2.8307,176.82,176.81,6.9614168]
[1730049157120,5.6586,176.91,176.81,6.9614168]
[1730049157327,4.14,176.9,176.86,6.9614168]
[1730049157822,2.8299,176.87,176.86,6.9614168]
[1730049158728,2.8298,176.88,176.86,6.9614168]
[1730049158923,2.8298,176.88,176.87,6.9614168]
[1730049160930,2.8296,176.89,176.87,6.9614168]
[1730049169235,2.8297,176.88,176.87,6.9614168]
[1730049182642,2.8296,176.89,176.87,6.9614168]
[1730049182840,2.8296,176.89,176.88,6.9614168]
[1730049191345,2.8296,176.89,176.86,2.83]
[1730049191540,2.8296,176.89,176.83,2.4237]
[1730049191541,2.8302,176.85,176.83,2.4237]
[1730049191747,4.14,176.87,176.79,1.1827]
[1730049191946,11.1014168,176.86,176.81,6.9614168]
[1730049192140,4.14,176.85,176.81,6.9614168]
[1730049192459,11.1014168,176.85,176.81,6.9614168]
[1730049192749,11.1014168,176.85,176.79,1.1827]
[1730049192750,2.8306,176.83,176.79,4.0138]
[1730049192949,17.01,177.15,176.82,6.9614168]
[1730049193149,14.09888194,177.16,176.8,76.12]
[1730049193150,6.9614168,177.09,177.02,6.9614168]
[1730049193349,6.9614168,177.04,176.87,72.99912326]
[1730049193547,6.9614168,177.04,176.97,6.9614168]
[1730049193750,11.1014168,177.04,176.97,6.9614168]
[1730049194053,4.14,177.03,176.99,6.9614168]
[1730049194852,4.14,177.03,177.0,6.9614168]
[1730049195065,4.14,177.03,176.93,2.26306625]
[1730049195251,4.14,177.03,177.0,6.9614168]
[1730049195444,4.14,177.03,177.01,1.41439437]
[1730049195647,4.14,177.03,177.02,1.41439437]
[1730049196347,4.14,177.03,177.02,8.37576308]
[1730049197249,4.14,177.03,177.02,6.9614168]
[1730049197562,0.67613224,177.07,177.02,9.7889168]
[1730049197563,4.34,177.04,177.02,9.7889168]
[1730049197855,4.34,177.04,177.03,6.9614168]
[1730049198159,0.67613224,177.07,177.03,6.9614168]
[1730049198458,4.34,177.06,177.03,9.7886168]
[1730049198644,4.34,177.06,177.05,6.9614168]
[1730049199148,0.67613224,177.07,177.05,6.9614168]
[1730049199354,4.34,177.06,177.05,6.9614168]
[1730049200058,4.34,177.06,177.04,2.827]
[1730049200059,4.34,177.06,177.03,6.9614168]
[1730049200255,4.34,177.06,176.97,1.41433854]
[1730049200456,4.34,177.06,177.02,6.9614168]
[1730049200657,4.34,177.06,177.04,6.9614168]
[1730049202659,5.01613224,177.07,177.05,6.9614168]
[1730049204258,5.01613224,177.07,177.05,9.7882168]
[1730049205065,5.01613224,177.07,177.06,2.8268]
[1730049212179,5.01613224,177.07,177.02,6.9614168]
[1730049212779,5.01613224,177.07,177.04,6.9614168]
[1730049213482,5.01613224,177.07,177.05,2.827]
[1730049214084,5.01613224,177.07,177.05,2.8268]
[1730049215183,0.67613224,177.07,177.05,6.9614168]
[1730049215386,0.67613224,177.07,177.06,9.7882168]
[1730049217583,0.67613224,177.07,177.02,3.623]
[1730049217888,0.67613224,177.07,177.03,6.9614168]
[1730049219280,0.67613224,177.07,177.05,2.8269]
[1730049219984,0.67613224,177.07,177.06,2.8268]
[1730049223580,0.67613224,177.07,177.06,9.7882168]
[1730049226885,0.67613224,177.07,177.06,2.8268]
[1730049227090,0.67613224,177.07,177.06,9.7882168]
[1730049231405,0.67613224,177.07,177.06,2.8268]
[1730049231588,3.50283224,177.07,177.04,2.8271]
[1730049231788,3.50283224,177.07,177.04,9.7885168]
[1730049232198,3.50283224,177.07,177.06,9.7882168]
[1730049232199,0.67613224,177.07,177.06,9.7882168]
[1730049232706,0.67613224,177.07,177.06,2.8268]
[1730049232997,0.67613224,177.07,177.06,9.7882168]
[1730049235298,2.826,177.11,177.09,2.8263]
[1730049238502,7.0459,177.12,177.09,2.8263]
[1730049238697,4.22,177.12,177.03,3.6679]
[1730049239004,4.22,177.12,177.07,6.9614168]
[1730049239599,2.8261,177.11,177.08,2.8265]
[1730049240200,4.22,177.12,177.07,6.9614168]
[1730049240405,2.8263,177.1,177.07,9.7879168]
[1730049241101,4.22,177.12,177.07,9.7879168]
[1730049241497,2.826,177.11,177.08,2.8264]
[1730049245210,4.22,177.12,177.07,6.9614168]
[1730049246410,2.826,177.11,177.08,2.8264]
[1730049247009,2.8263,177.1,177.07,2.8266]
[1730049248908,2.8265,177.09,177.06,2.8268]
[1730049249115,11.1814168,177.12,177.05,6.9614168]
[1730049249116,13.5992168,177.12,177.05,6.9614168]
[1730049250005,2.8262,177.1,177.06,2.8267]
[1730049254213,6.6378,177.12,177.06,6.9614168]
[1730049254608,6.6378,177.12,177.06,9.7881168]
[1730049254609,2.8263,177.1,177.06,9.7881168]
[1730049255411,2.8263,177.1,177.06,2.8267]
[1730049255623,2.8264,177.09,177.06,2.8267]
[1730049255808,4.22,177.08,177.06,2.8267]
[1730049256208,4.22,177.08,177.05,9.7883168]
[1730049257107,7.0466,177.08,177.05,9.7883168]
[1730049263114,7.0466,177.08,177.06,2.8268]
[1730049264522,7.0466,177.08,176.98,4.22]
[1730049264523,4.22,177.08,176.98,4.22]
[1730049264812,4.22,177.08,177.05,6.9614168]
[1730049265707,6.9614168,177.07,177.01,6.9614168]
[1730049266117,2.8273,177.04,177.01,9.7889168]
[1730049266416,4.16,177.03,177.01,9.7889168]
[1730049267114,4.16,177.03,177.02,9.7889168]
[1730049268312,4.16,177.03,177.02,11.2031306]
[1730049268712,4.16,177.05,177.04,2.827]
[1730049268912,4.16,177.05,177.04,9.7884168]
[1730049274018,4.16,177.05,177.04,2.827]
[1730049274235,4.16,177.05,177.04,9.7884168]
[1730049276027,4.16,177.05,177.04,6.9614168]
[1730049276218,4.16,177.05,177.02,6.9614168]
[1730049276425,4.16,177.05,177.03,1.41424258]
[1730049276612,4.16,177.05,177.0,2.8277]
[1730049276818,11.1214168,177.05,177.01,1.414301]
[1730049277017,6.9614168,177.02,176.96,7.90877356]
[1730049277220,4.16,177.01,176.97,8.62215092]
[1730049277422,2.828,176.99,176.98,1.41449928]
[1730049278426,2.828,176.99,176.96,9.7897168]
[1730049278629,2.828,176.99,176.97,1.41456196]
[1730049278828,2.828,176.99,176.96,9.7897168]
[1730049279933,4.16,177.01,176.99,2.8279]
[1730049280119,4.16,177.01,177.0,6.9614168]
[1730049280326,4.16,177.01,176.99,6.9614168]
[1730049280626,6.9877,177.01,176.99,6.9614168]
[1730049281926,6.9877,177.01,176.99,9.7893168]
[1730049284133,6.9877,177.01,176.99,6.9614168]
[1730049284522,6.9877,177.01,176.98,9.7894168]
[1730049286923,6.9877,177.01,176.99,6.9614168]
[1730049288036,2.8274,177.03,177.0,9.7891168]
[1730049288234,2.8274,177.03,176.93,1.2747]
[1730049288235,4.14,177.03,177.02,6.9614168]
[1730049289538,4.14,177.03,177.02,9.7889168]
[1730049289741,4.14,177.06,177.02,6.9614168]
[1730049289935,4.14,177.06,177.04,6.9614168]
[1730049290237,2.827,177.05,177.04,6.9614168]
[1730049291243,2.78162336,177.13,177.04,6.9614168]
[1730049291547,6.9614168,177.1,177.04,6.9614168]
[1730049293244,2.8268,177.07,177.04,6.9614168]
[1730049293450,6.9668,177.07,177.04,6.9614168]
[1730049294044,4.14,177.07,177.04,6.9614168]
[1730049294341,4.14,177.07,177.05,9.7883168]
[1730049295339,4.14,177.07,177.06,2.8268]
[1730049295538,4.14,177.07,177.05,6.9614168]
[1730049295844,4.14,177.08,177.06,2.8268]
[1730049296150,2.89777222,177.13,177.06,6.9614168]
[1730049296338,2.8263,177.1,177.06,6.9614168]
[1730049296537,2.8263,177.1,177.07,2.8266]
[1730049297233,11.1014168,177.12,177.06,6.9614168]
[1730049297645,65.43211925,177.21,177.01,7.19203437]
[1730049297857,9.36601466,177.35,177.01,7.19203437]
[1730049297858,1.17669446,177.47,177.21,34.01]
[1730049298048,1.17669446,177.47,177.45,6.9614168]
[1730049298639,7.8039832,177.46,177.45,6.9614168]
[1730049298837,1.17669446,177.47,177.45,6.9614168]
[1730049299032,7.77267604,177.6,177.45,6.9614168]
[1730049299237,7.77267604,177.6,177.34,8.00718308]
[1730049299238,0.81125924,177.6,177.38,5.68]
[1730049299444,0.81125924,177.6,177.55,6.9614168]
[1730049299646,5.68,177.59,177.4,8.59908404]
[1730049299941,5.68,177.59,177.53,6.9614168]
[1730049300147,0.81125924,177.6,177.54,6.9614168]
[1730049300343,0.81125924,177.6,177.46,5.68]
[1730049300548,0.81125924,177.6,177.51,10.83063732]
[1730049300846,0.81125924,177.6,177.46,5.68]
[1730049300847,0.81125924,177.6,177.52,6.48954953]
[1730049301036,0.81125924,177.6,177.53,3.66867863]
[1730049301344,0.81125924,177.6,177.54,1.76077863]
[1730049301345,10.83063732,177.55,177.54,1.76077863]
[1730049301544,10.83063732,177.55,177.47,0.70301692]
[1730049301545,16.51063732,177.55,177.47,0.70301692]
[1730049301737,10.83063732,177.58,177.48,2.82143896]
[1730049301938,5.68,177.57,177.49,2.82143896]
[1730049302138,11.83063732,177.59,177.5,2.82143896]
[1730049302450,8.4787,177.58,177.51,2.82143896]
[1730049302751,8.4787,177.58,177.44,17.33954238]
[1730049302945,2.8187,177.58,177.45,2.82151226]
[1730049303146,5.66,177.57,177.46,2.82151226]
[1730049303451,1.0,177.59,177.47,2.82151226]
[1730049303651,5.66,177.58,177.44,17.33954238]
[1730049303852,5.66,177.58,177.45,2.82150124]
[1730049304049,5.66,177.58,177.46,2.82150124]
[1730049304246,2.8186,177.58,177.47,2.82150124]
[1730049304443,1.0,177.59,177.48,2.82150124]
[1730049304652,1.0,177.59,177.46,17.33954238]
[1730049305052,3.62955924,177.6,177.49,2.8198]
[1730049305053,0.81125924,177.6,177.49,2.8198]
[1730049305265,5.66,177.59,177.47,2.82120689]
[1730049305552,5.66,177.59,177.48,2.82111444]
[1730049305751,5.66,177.58,177.44,22.99954238]
[1730049306050,5.66,177.57,177.48,17.33954238]
[1730049306350,0.81125924,177.6,177.49,2.82100487]
[1730049306551,6.47125924,177.6,177.5,2.82100487]
[1730049306753,0.81125924,177.6,177.46,2.82100487]
[1730049306959,0.81125924,177.6,177.49,17.33954238]
[1730049307261,6.47125924,177.6,177.51,2.8195]
[1730049307556,0.81125924,177.6,177.52,17.33954238]
[1730049307752,0.81125924,177.6,177.53,2.8192]
[1730049308252,0.22224404,177.6,177.52,17.33954238]
[1730049308449,0.22224404,177.6,177.54,2.8191]
[1730049308850,0.22224404,177.6,177.52,17.33954238]
[1730049309255,0.22224404,177.6,177.55,17.33954238]
[1730049309850,0.22224404,177.6,177.57,2.8185]
[1730049310047,0.02624844,177.6,177.55,17.33954238]
[1730049311150,20.9635369,178.25,177.58,17.33954238]
[1730049311346,20.9635369,178.25,177.51,17.33954238]
[1730049311347,6.43058618,177.86,177.67,17.33954238]
[1730049311655,5.96,177.8,177.67,17.33954238]
[1730049312154,54.8,177.91,177.73,17.33954238]
[1730049312364,5.96,177.86,177.73,17.33954238]
[1730049312753,2.8148,177.82,177.72,2.8162]
[1730049312951,17.33954238,177.79,177.66,17.33954238]
[1730049313255,17.33954238,177.87,177.57,17.33954238]
[1730049313256,17.33954238,177.73,177.57,17.33954238]
[1730049313452,5.96,177.72,177.6,17.33954238]
[1730049313651,5.96,177.71,177.6,17.33954238]
[1730049313849,17.33954238,177.76,177.63,17.33954238]
[1730049314055,5.96,177.72,177.63,17.33954238]
[1730049315055,5.96,177.72,177.64,2.8174]
[1730049315253,5.96,177.71,177.63,17.33954238]
[1730049315458,5.96,177.72,177.63,17.33954238]
[1730049316155,17.33954238,177.76,177.6,23.29954238]
[1730049316355,17.33954238,177.7,177.57,18.54744238]
[1730049316554,2.817,177.68,177.57,18.54744238]
[1730049316954,5.96,177.67,177.57,18.54744238]
[1730049317473,2.817,177.68,177.57,18.54744238]
[1730049317474,5.96,177.66,177.57,18.54744238]
[1730049318368,5.42988632,177.66,177.57,18.54744238]
[1730049318567,5.96,177.68,177.57,18.54744238]
[1730049319166,2.8168,177.69,177.57,24.50744238]
[1730049319371,8.7768,177.69,177.57,24.50744238]
[1730049319567,5.96,177.69,177.57,24.50744238]
[1730049320071,5.6287,177.85,177.63,17.33954238]
[1730049320371,5.6287,177.85,177.57,24.1679]
[1730049320372,5.96,177.78,177.66,17.33954238]
[1730049320771,2.8161,177.74,177.66,17.33954238]
[1730049321377,2.8162,177.73,177.66,17.33954238]
[1730049322078,2.816,177.74,177.66,17.33954238]
[1730049322278,5.96,177.78,177.66,17.33954238]
[1730049322976,5.6264,177.92,177.69,17.33954238]
[1730049323174,17.33954238,177.86,177.71,17.33954238]
[1730049323672,17.33954238,177.83,177.7,1.2291]
[1730049323978,2.8159,177.75,177.7,1.2291]
[1730049324182,17.33954238,177.8,177.66,17.33954238]
[1730049324183,6.28,177.78,177.66,17.33954238]
[1730049324579,2.8156,177.77,177.66,17.33954238]
[1730049324890,23.61954238,177.8,177.69,17.33954238]
[1730049324891,6.28,177.8,177.69,17.33954238]
[1730049325771,2.8156,177.77,177.69,17.33954238]
[1730049325985,6.28,177.8,177.69,17.33954238]
[1730049326686,23.61954238,177.8,177.66,17.33954238]
[1730049326890,2.8161,177.74,177.66,17.33954238]
[1730049327185,23.61954238,177.8,177.66,17.33954238]
[1730049327376,2.8163,177.73,177.65,6.28]
[1730049327978,2.8163,177.73,177.66,17.33954238]
[1730049328369,2.8165,177.71,177.66,17.33954238]
[1730049328682,5.80289769,177.75,177.66,17.33954238]
[1730049329579,2.8165,177.71,177.66,17.33954238]
[1730049331178,5.80289769,177.75,177.66,17.33954238]
[1730049331179,2.8163,177.72,177.66,17.33954238]
[1730049331779,2.8169,177.69,177.64,1.2291]
[1730049331973,5.80289769,177.75,177.63,18.59664238]
[1730049332279,5.80289769,177.75,177.6,6.28]
[1730049332280,23.14244007,177.75,177.6,17.33954238]
[1730049332905,5.6304,177.8,177.68,17.33954238]
[1730049334486,2.8167,177.7,177.68,17.33954238]
[1730049335378,6.28,177.74,177.65,17.33954238]
[1730049335782,6.28,177.74,177.65,20.15694238]
[1730049336090,6.28,177.74,177.65,17.33954238]
[1730049336591,2.8169,177.69,177.65,17.33954238]
[1730049337175,2.8169,177.69,177.65,20.15694238]
[1730049337580,6.28,177.74,177.65,17.33954238]
[1730049338386,2.817,177.68,177.65,17.33954238]
[1730049338888,5.85060792,177.74,177.65,17.33954238]
[1730049339092,2.8176,177.64,177.6,17.33954238]
[1730049339890,6.28,177.68,177.6,17.33954238]
[1730049340194,6.28,177.68,177.59,17.33954238]
[1730049340694,2.8178,177.63,177.59,17.33954238]
[1730049340891,6.28,177.68,177.59,17.33954238]
[1730049341400,2.818,177.62,177.59,17.33954238]
[1730049341689,6.28,177.68,177.59,17.33954238]
[1730049342496,2.8182,177.61,177.59,17.33954238]
[1730049342694,2.8182,177.61,177.56,17.33954238]
[1730049342898,6.28,177.62,177.56,17.33954238]
[1730049343598,6.28,177.62,177.54,17.33954238]
[1730049344095,2.8183,177.6,177.56,17.33954238]
[1730049344300,6.28,177.62,177.56,17.33954238]
[1730049344496,2.8186,177.58,177.56,17.33954238]
[1730049344803,2.8186,177.58,177.54,2.8192]
[1730049344804,2.8186,177.58,177.54,17.33954238]
[1730049344997,6.28,177.62,177.53,1.2467]
[1730049345411,6.28,177.62,177.51,17.33954238]
[1730049345806,7.5042,177.62,177.51,17.33954238]
[1730049346000,2.8192,177.54,177.51,17.33954238]
[1730049348098,6.28,177.56,177.5,1.1858]
[1730049348794,2.8194,177.53,177.5,1.1858]
[1730049349112,100.99295746,177.56,177.5,1.1858]
[1730049349408,2.8195,177.53,177.5,1.1858]
[1730049350199,2.8195,177.53,177.48,21.41054238]
[1730049350501,6.28,177.56,177.48,1.251]
[1730049351008,2.8198,177.5,177.45,17.33954238]
[1730049351304,6.28,177.56,177.44,2.3568]
[1730049351497,1.2242,177.62,177.51,17.33954238]
[1730049351697,6.22,177.59,177.52,2.8195]
[1730049351892,6.22,177.59,177.51,17.33954238]
[1730049353103,6.22,177.59,177.48,17.33954238]
[1730049353313,6.22,177.59,177.49,2.8199]
[1730049353491,2.8192,177.54,177.48,17.33954238]
[1730049353805,2.8192,177.54,177.51,2.8196]
[1730049353999,2.8192,177.54,177.48,17.33954238]
[1730049354000,6.22,177.59,177.48,17.33954238]
[1730049354195,2.819,177.56,177.48,17.33954238]
[1730049354402,6.22,177.59,177.48,17.33954238]
[1730049354600,6.22,177.59,177.51,17.33954238]
[1730049354793,2.819,177.56,177.51,17.33954238]
[1730049354996,6.22,177.59,177.51,17.33954238]
[1730049355197,6.22,177.59,177.52,2.8195]
[1730049355394,2.819,177.55,177.51,17.33954238]
[1730049355708,6.22,177.59,177.51,17.33954238]
[1730049355895,2.8192,177.54,177.51,17.33954238]
[1730049356697,1.2242,177.62,177.51,17.33954238]
[1730049356898,1.2242,177.62,177.48,17.33954238]
[1730049356899,6.22,177.61,177.48,17.33954238]
[1730049357307,2.8196,177.52,177.48,20.15954238]
[1730049357503,2.8196,177.52,177.48,17.33954238]
[1730049358107,6.22,177.54,177.47,17.33954238]
[1730049358493,6.22,177.54,177.49,10.83441466]
[1730049358906,2.8197,177.51,177.49,10.83441466]
[1730049360204,2.8198,177.51,177.47,13.65461466]